[Event "Titled Tuesday Blitz April 18 Early 2023"]
[White "Womacka, Mathias"]
[Black "Seder, Mohammed"]
[WhiteFideId "4611390"]
[BlackFideId "11505567"]
[WhiteElo "2377"]
[BlackElo "1862"]
[Result "1-0"]
[Round "02"]
[TimeControl "180+2"]
[Date "2023.04.18"]
[WhiteClock "0:00:58"]
[BlackClock "0:00:11"]

1. e4 {[%clk 0:02:58]}  c5 {[%clk 0:02:59]} 2. Nf3 {[%clk 0:02:57]}  Nc6 {[%clk 0:02:59]} 3. d4 {[%clk 0:02:58]}  cxd4 {[%clk 0:02:59]} 4. Nxd4 {[%clk 0:02:59]}  Nf6 {[%clk 0:03:00]} 5. Nc3 {[%clk 0:02:58]}  e5 {[%clk 0:03:00]} 6. Ndb5 {[%clk 0:02:58]}  d6 {[%clk 0:03:00]} 7. Bg5 {[%clk 0:02:58]}  a6 {[%clk 0:02:57]} 8. Na3 {[%clk 0:02:58]}  b5 {[%clk 0:02:57]} 9. Nd5 {[%clk 0:02:57]}  Be7 {[%clk 0:02:57]} 10. Bxf6 {[%clk 0:02:57]}  Bxf6 {[%clk 0:02:58]} 11. c3 {[%clk 0:02:57]}  Be6 {[%clk 0:02:54]} 12. Nxf6+ {[%clk 0:02:54]}  gxf6 {[%clk 0:02:46]} 13. Nc2 {[%clk 0:02:53]}  f5 {[%clk 0:02:31]} 14. exf5 {[%clk 0:02:52]}  Bxf5 {[%clk 0:02:31]} 15. Ne3 {[%clk 0:02:52]}  Be6 {[%clk 0:02:13]} 16. Bd3 {[%clk 0:02:49]}  Qd7 {[%clk 0:01:54]} 17. O-O {[%clk 0:02:39]}  h5 {[%clk 0:01:29]} 18. Qf3 {[%clk 0:02:22]}  d5 {[%clk 0:01:03]} 19. Bf5 {[%clk 0:01:58]}  e4 {[%clk 0:00:24]} 20. Qf4 {[%clk 0:01:57]}  Rg8 {[%clk 0:00:17]} 21. Rfd1 {[%clk 0:01:51]}  O-O-O {[%clk 0:00:17]} 22. Nxd5 {[%clk 0:01:41]}  Kb7 {[%clk 0:00:08]} 23. Ne3 {[%clk 0:01:38]}  Qc7 {[%clk 0:00:06]} 24. Qxc7+ {[%clk 0:01:37]}  Kxc7 {[%clk 0:00:07]} 25. Bxe4 {[%clk 0:01:36]}  h4 {[%clk 0:00:05]} 26. Rxd8 {[%clk 0:01:30]}  Rxd8 {[%clk 0:00:05]} 27. Rd1 {[%clk 0:01:29]}  Rxd1+ {[%clk 0:00:05]} 28. Nxd1 {[%clk 0:01:30]}  Bxa2 {[%clk 0:00:05]} 29. Ne3 {[%clk 0:01:29]}  Ne5 {[%clk 0:00:04]} 30. f4 {[%clk 0:01:25]}  Nc4 {[%clk 0:00:03]} 31. Nxc4 {[%clk 0:01:24]}  Bxc4 {[%clk 0:00:03]} 32. Kf2 {[%clk 0:01:25]}  Kd6 {[%clk 0:00:01]} 33. Ke3 {[%clk 0:01:25]}  Ke6 {[%clk 0:00:01]} 34. Kd4 {[%clk 0:01:25]}  a5 {[%clk 0:00:01]} 35. Kc5 {[%clk 0:01:14]}  Bf1 {[%clk 0:00:02]} 36. g4 {[%clk 0:01:12]}  hxg3 {[%clk 0:00:01]} 37. hxg3 {[%clk 0:01:12]}  a4 {[%clk 0:00:02]} 38. Bc6 {[%clk 0:01:09]}  Kf5 {[%clk 0:00:01]} 39. Bxb5 {[%clk 0:01:09]}  Bg2 {[%clk 0:00:02]} 40. Bd7+ {[%clk 0:01:06]}  Ke4 {[%clk 0:00:02]} 41. Bc6+ {[%clk 0:01:06]}  Ke3 {[%clk 0:00:02]} 42. Bxg2 {[%clk 0:01:06]}  Kf2 {[%clk 0:00:03]} 43. Bc6 {[%clk 0:01:06]}  Kxg3 {[%clk 0:00:04]} 44. Bxa4 {[%clk 0:01:05]}  Kxf4 {[%clk 0:00:05]} 45. Bc6 {[%clk 0:01:05]}  Ke3 {[%clk 0:00:06]} 46. b4 {[%clk 0:01:05]}  f5 {[%clk 0:00:07]} 47. b5 {[%clk 0:01:05]}  f4 {[%clk 0:00:08]} 48. b6 {[%clk 0:01:05]}  f3 {[%clk 0:00:09]} 49. Bxf3 {[%clk 0:01:05]}  Kxf3 {[%clk 0:00:10]} 50. b7 {[%clk 0:01:05]}  Ke3 {[%clk 0:00:10]} 51. b8=Q {[%clk 0:01:04]}  Kd3 {[%clk 0:00:11]} 52. Qf4 {[%clk 0:01:02]}  Kc2 {[%clk 0:00:12]} 53. Kc4 {[%clk 0:01:00]}  Kb2 {[%clk 0:00:13]} 54. Kb4 {[%clk 0:00:57]}  Kc2 {[%clk 0:00:11]} 55. c4 {[%clk 0:00:58]} 1-0


[Site "https://www.chess.com"]

[Event "Titled Tuesday Blitz April 18 Early 2023"]
[White "Senft, Sean"]
[Black "Rodchenkov, Sergey D."]
[WhiteFideId "2044960"]
[BlackFideId "4168712"]
[WhiteElo "1989"]
[BlackElo "2277"]
[Result "1-0"]
[Round "02"]
[TimeControl "180+2"]
[Date "2023.04.18"]
[WhiteClock "0:00:25"]
[BlackClock "0:00:38"]

1. d4 {[%clk 0:02:53]}  d5 {[%clk 0:02:58]} 2. c4 {[%clk 0:02:52]}  dxc4 {[%clk 0:02:59]} 3. e3 {[%clk 0:02:52]}  Nf6 {[%clk 0:02:59]} 4. Bxc4 {[%clk 0:02:51]}  e6 {[%clk 0:02:59]} 5. Nc3 {[%clk 0:02:50]}  a6 {[%clk 0:02:58]} 6. Nf3 {[%clk 0:02:49]}  c5 {[%clk 0:02:59]} 7. O-O {[%clk 0:02:48]}  Nc6 {[%clk 0:02:59]} 8. Qe2 {[%clk 0:02:36]}  Be7 {[%clk 0:02:59]} 9. dxc5 {[%clk 0:02:32]}  Bxc5 {[%clk 0:03:00]} 10. Rd1 {[%clk 0:02:30]}  Qc7 {[%clk 0:03:00]} 11. b3 {[%clk 0:02:25]}  O-O {[%clk 0:02:55]} 12. Bb2 {[%clk 0:02:25]}  b5 {[%clk 0:02:46]} 13. Bd3 {[%clk 0:02:22]}  Bb7 {[%clk 0:02:45]} 14. Rac1 {[%clk 0:02:21]}  Be7 {[%clk 0:02:33]} 15. Ne4 {[%clk 0:02:09]}  Nd5 {[%clk 0:02:26]} 16. Bb1 {[%clk 0:01:47]}  f6 {[%clk 0:02:15]} 17. Qc2 {[%clk 0:01:29]}  Ndb4 {[%clk 0:01:47]} 18. Nxf6+ {[%clk 0:01:04]}  Bxf6 {[%clk 0:01:15]} 19. Qxh7+ {[%clk 0:01:01]}  Kf7 {[%clk 0:01:13]} 20. Ng5+ {[%clk 0:00:27]}  Ke7 {[%clk 0:00:48]} 21. Bxf6+ {[%clk 0:00:26]}  Kxf6 {[%clk 0:00:46]} 22. Qg6+ {[%clk 0:00:26]}  Ke7 {[%clk 0:00:37]} 23. Qxg7+ {[%clk 0:00:26]}  Ke8 {[%clk 0:00:38]} 24. Qxc7 {[%clk 0:00:25]} 1-0


[Site "https://www.chess.com"]

[Event "Titled Tuesday Blitz April 18 Early 2023"]
[White "Fajdetic, Hrvoje"]
[Black "Manukyan, Artyom"]
[WhiteFideId "14501945"]
[BlackFideId "13305786"]
[WhiteElo "2185"]
[BlackElo "2078"]
[Result "1-0"]
[Round "02"]
[TimeControl "180+2"]
[Date "2023.04.18"]
[WhiteClock "0:00:11"]
[BlackClock "0:00:01"]

1. d4 {[%clk 0:02:59]}  e6 {[%clk 0:02:58]} 2. Bf4 {[%clk 0:02:59]}  f5 {[%clk 0:02:57]} 3. h3 {[%clk 0:02:58]}  Nf6 {[%clk 0:02:55]} 4. e3 {[%clk 0:02:54]}  b6 {[%clk 0:02:55]} 5. g4 {[%clk 0:02:54]}  Bb7 {[%clk 0:02:55]} 6. Rh2 {[%clk 0:02:53]}  Be7 {[%clk 0:02:49]} 7. a4 {[%clk 0:02:42]}  d6 {[%clk 0:02:31]} 8. a5 {[%clk 0:02:41]}  Qd7 {[%clk 0:02:21]} 9. a6 {[%clk 0:02:38]}  Bc6 {[%clk 0:02:21]} 10. gxf5 {[%clk 0:02:19]}  exf5 {[%clk 0:02:20]} 11. Bc4 {[%clk 0:02:19]}  Nd5 {[%clk 0:02:09]} 12. Ne2 {[%clk 0:02:11]}  Bf6 {[%clk 0:02:04]} 13. Nbc3 {[%clk 0:01:54]}  Nxc3 {[%clk 0:02:02]} 14. Nxc3 {[%clk 0:01:47]}  d5 {[%clk 0:01:31]} 15. Bd3 {[%clk 0:01:44]}  O-O {[%clk 0:01:19]} 16. Qh5 {[%clk 0:01:32]}  g6 {[%clk 0:01:01]} 17. Rg2 {[%clk 0:01:31]}  Bg7 {[%clk 0:00:59]} 18. Qf3 {[%clk 0:01:27]}  Qe6 {[%clk 0:00:46]} 19. h4 {[%clk 0:01:10]}  Bxd4 {[%clk 0:00:30]} 20. h5 {[%clk 0:01:05]}  Bxc3+ {[%clk 0:00:30]} 21. bxc3 {[%clk 0:01:02]}  d4 {[%clk 0:00:30]} 22. Qg3 {[%clk 0:00:55]}  Bxg2 {[%clk 0:00:28]} 23. Qxg2 {[%clk 0:00:53]}  Nd7 {[%clk 0:00:27]} 24. cxd4 {[%clk 0:00:47]}  Rad8 {[%clk 0:00:13]} 25. hxg6 {[%clk 0:00:39]}  Qxg6 {[%clk 0:00:11]} 26. Bc4+ {[%clk 0:00:38]}  Kg7 {[%clk 0:00:11]} 27. Qh2 {[%clk 0:00:37]}  Rfe8 {[%clk 0:00:05]} 28. O-O-O {[%clk 0:00:27]}  Nf6 {[%clk 0:00:02]} 29. Be5 {[%clk 0:00:20]}  Rxe5 {[%clk 0:00:02]} 30. Qxe5 {[%clk 0:00:21]}  Kh8 {[%clk 0:00:01]} 31. Qxc7 {[%clk 0:00:14]}  Rf8 {[%clk 0:00:01]} 32. Qxa7 {[%clk 0:00:14]}  Ne4 {[%clk 0:00:01]} 33. Qe7 {[%clk 0:00:11]} 1-0


[Site "https://www.chess.com"]

[Event "Titled Tuesday Blitz April 18 Early 2023"]
[White "Jaskolka, Tomasz"]
[Black "Gheorghiu, Calin"]
[WhiteFideId "1170791"]
[BlackFideId "1200305"]
[WhiteElo "2155"]
[BlackElo "2223"]
[Result "0-1"]
[Round "02"]
[TimeControl "180+2"]
[Date "2023.04.18"]
[WhiteClock "0:00:02"]
[BlackClock "0:00:05"]

1. d4 {[%clk 0:02:56]}  Nf6 {[%clk 0:02:59]} 2. Bf4 {[%clk 0:02:55]}  d5 {[%clk 0:02:57]} 3. e3 {[%clk 0:02:54]}  c5 {[%clk 0:02:56]} 4. c3 {[%clk 0:02:54]}  Nc6 {[%clk 0:02:56]} 5. Nd2 {[%clk 0:02:54]}  g6 {[%clk 0:02:50]} 6. Ngf3 {[%clk 0:02:51]}  Bg7 {[%clk 0:02:50]} 7. dxc5 {[%clk 0:02:51]}  O-O {[%clk 0:02:48]} 8. Nd4 {[%clk 0:02:33]}  a5 {[%clk 0:02:40]} 9. Be2 {[%clk 0:02:22]}  Nd7 {[%clk 0:02:38]} 10. Nxc6 {[%clk 0:02:12]}  bxc6 {[%clk 0:02:36]} 11. Nb3 {[%clk 0:02:06]}  e5 {[%clk 0:02:32]} 12. Bg3 {[%clk 0:02:02]}  a4 {[%clk 0:02:31]} 13. Nd2 {[%clk 0:02:02]}  Nxc5 {[%clk 0:02:30]} 14. O-O {[%clk 0:02:03]}  Ba6 {[%clk 0:02:24]} 15. Bxa6 {[%clk 0:02:02]}  Rxa6 {[%clk 0:02:25]} 16. Qe2 {[%clk 0:01:40]}  Rb6 {[%clk 0:02:13]} 17. Rab1 {[%clk 0:01:32]}  e4 {[%clk 0:02:12]} 18. f3 {[%clk 0:01:29]}  exf3 {[%clk 0:02:02]} 19. gxf3 {[%clk 0:01:26]}  Qe7 {[%clk 0:01:59]} 20. e4 {[%clk 0:01:21]}  Re8 {[%clk 0:01:51]} 21. Qf2 {[%clk 0:01:14]}  a3 {[%clk 0:00:45]} 22. Rfe1 {[%clk 0:01:02]}  Rxb2 {[%clk 0:00:40]} 23. exd5 {[%clk 0:00:55]}  Rxb1 {[%clk 0:00:31]} 24. Rxb1 {[%clk 0:00:56]}  Nd3 {[%clk 0:00:25]} 25. Qf1 {[%clk 0:00:46]}  Qe3+ {[%clk 0:00:22]} 26. Bf2 {[%clk 0:00:43]}  Qxd2 {[%clk 0:00:21]} 27. dxc6 {[%clk 0:00:37]}  Bxc3 {[%clk 0:00:13]} 28. Rd1 {[%clk 0:00:23]}  Qxf2+ {[%clk 0:00:12]} 29. Qxf2 {[%clk 0:00:24]}  Nxf2 {[%clk 0:00:13]} 30. Kxf2 {[%clk 0:00:23]}  Be5 {[%clk 0:00:13]} 31. Rd3 {[%clk 0:00:22]}  Rc8 {[%clk 0:00:12]} 32. Rd5 {[%clk 0:00:20]}  f6 {[%clk 0:00:11]} 33. Ra5 {[%clk 0:00:18]}  Rxc6 {[%clk 0:00:10]} 34. Rxa3 {[%clk 0:00:19]}  Bxh2 {[%clk 0:00:11]} 35. Ra8+ {[%clk 0:00:15]}  Kg7 {[%clk 0:00:11]} 36. Ra7+ {[%clk 0:00:16]}  Rc7 {[%clk 0:00:11]} 37. Ra6 {[%clk 0:00:16]}  Be5 {[%clk 0:00:11]} 38. a4 {[%clk 0:00:16]}  h5 {[%clk 0:00:11]} 39. Kg2 {[%clk 0:00:14]}  Rc2+ {[%clk 0:00:08]} 40. Kh1 {[%clk 0:00:13]}  h4 {[%clk 0:00:07]} 41. Rb6 {[%clk 0:00:10]}  h3 {[%clk 0:00:07]} 42. Rb1 {[%clk 0:00:08]}  Ra2 {[%clk 0:00:07]} 43. a5 {[%clk 0:00:08]}  Rxa5 {[%clk 0:00:07]} 44. f4 {[%clk 0:00:08]}  Bxf4 {[%clk 0:00:06]} 45. Rb7+ {[%clk 0:00:06]}  Kh6 {[%clk 0:00:06]} 46. Rb1 {[%clk 0:00:06]}  Ra2 {[%clk 0:00:05]} 47. Kg1 {[%clk 0:00:06]}  g5 {[%clk 0:00:03]} 48. Kh1 {[%clk 0:00:07]}  g4 {[%clk 0:00:03]} 49. Rf1 {[%clk 0:00:06]}  Bg5 {[%clk 0:00:02]} 50. Re1 {[%clk 0:00:04]}  Kh5 {[%clk 0:00:02]} 51. Re3 {[%clk 0:00:04]}  Kh4 {[%clk 0:00:02]} 52. Re1 {[%clk 0:00:02]}  f5 {[%clk 0:00:02]} 53. Re3 {[%clk 0:00:02]}  f4 {[%clk 0:00:03]} 54. Re1 {[%clk 0:00:03]}  g3 {[%clk 0:00:03]} 55. Kg1 {[%clk 0:00:03]}  h2+ {[%clk 0:00:03]} 56. Kh1 {[%clk 0:00:04]}  Kh3 {[%clk 0:00:03]} 57. Rg1 {[%clk 0:00:02]}  g2+ {[%clk 0:00:04]} 58. Rxg2 {[%clk 0:00:02]}  Ra1+ {[%clk 0:00:04]} 59. Rg1 {[%clk 0:00:02]}  Rxg1# {[%clk 0:00:05]} 0-1


[Site "https://www.chess.com"]

[Event "Titled Tuesday Blitz April 18 Early 2023"]
[White "Tyagi, Kushan"]
[Black "Birkisson, Bardur Orn"]
[WhiteFideId "2040069"]
[BlackFideId "2310597"]
[WhiteElo "2291"]
[BlackElo "2062"]
[Result "0-1"]
[Round "02"]
[TimeControl "180+2"]
[Date "2023.04.18"]
[WhiteClock "0:00:26"]
[BlackClock "0:00:12"]

1. d4 {[%clk 0:03:00]}  Nf6 {[%clk 0:02:59]} 2. c4 {[%clk 0:03:00]}  e6 {[%clk 0:02:59]} 3. g3 {[%clk 0:02:59]}  d5 {[%clk 0:02:33]} 4. Bg2 {[%clk 0:02:59]}  Be7 {[%clk 0:02:33]} 5. Nf3 {[%clk 0:02:59]}  O-O {[%clk 0:02:34]} 6. O-O {[%clk 0:02:59]}  dxc4 {[%clk 0:02:34]} 7. Qc2 {[%clk 0:02:59]}  a6 {[%clk 0:02:34]} 8. Qxc4 {[%clk 0:02:58]}  b5 {[%clk 0:02:31]} 9. Qc2 {[%clk 0:02:58]}  Bb7 {[%clk 0:02:29]} 10. Bd2 {[%clk 0:02:57]}  Be4 {[%clk 0:02:04]} 11. Qc1 {[%clk 0:02:55]}  Qc8 {[%clk 0:01:59]} 12. Nc3 {[%clk 0:02:28]}  Bb7 {[%clk 0:01:56]} 13. Rd1 {[%clk 0:02:23]}  Rd8 {[%clk 0:01:56]} 14. Bf4 {[%clk 0:02:17]}  Nbd7 {[%clk 0:01:46]} 15. a3 {[%clk 0:02:09]}  c5 {[%clk 0:01:43]} 16. Qc2 {[%clk 0:01:53]}  cxd4 {[%clk 0:01:18]} 17. Rxd4 {[%clk 0:01:40]}  Nd5 {[%clk 0:00:51]} 18. Rc1 {[%clk 0:01:14]}  Nxf4 {[%clk 0:00:45]} 19. gxf4 {[%clk 0:01:11]}  Bf6 {[%clk 0:00:42]} 20. Rd2 {[%clk 0:01:02]}  Nb6 {[%clk 0:00:40]} 21. Rxd8+ {[%clk 0:00:55]}  Bxd8 {[%clk 0:00:33]} 22. Ne5 {[%clk 0:00:32]}  Bxg2 {[%clk 0:00:28]} 23. Kxg2 {[%clk 0:00:33]}  Bf6 {[%clk 0:00:20]} 24. Ne4 {[%clk 0:00:29]}  Qxc2 {[%clk 0:00:15]} 25. Rxc2 {[%clk 0:00:30]}  Bxe5 {[%clk 0:00:12]} 26. fxe5 {[%clk 0:00:31]}  Nc4 {[%clk 0:00:12]} 27. f4 {[%clk 0:00:31]}  Ne3+ {[%clk 0:00:12]} 28. Kf3 {[%clk 0:00:30]}  Nxc2 {[%clk 0:00:13]} 29. Nd6 {[%clk 0:00:26]}  b4 {[%clk 0:00:12]} 30. a4 {[%clk 0:00:26]}  Rd8 {[%clk 0:00:11]} 31. b3 {[%clk 0:00:27]}  Nd4+ {[%clk 0:00:11]} 32. Ke4 {[%clk 0:00:26]}  Nxb3 {[%clk 0:00:12]} 0-1


[Site "https://www.chess.com"]

[Event "Titled Tuesday Blitz April 18 Early 2023"]
[White "Hajiyev, Kanan"]
[Black "Pourkashiyan, Atousa"]
[WhiteFideId "13404148"]
[BlackFideId "12502014"]
[WhiteElo "2103"]
[BlackElo "2228"]
[Result "1/2-1/2"]
[Round "02"]
[TimeControl "180+2"]
[Date "2023.04.18"]
[WhiteClock "0:00:19"]
[BlackClock "0:00:06"]

1. d4 {[%clk 0:02:48]}  Nf6 {[%clk 0:02:59]} 2. Nf3 {[%clk 0:02:46]}  d5 {[%clk 0:02:58]} 3. c4 {[%clk 0:02:45]}  e6 {[%clk 0:02:58]} 4. cxd5 {[%clk 0:02:46]}  exd5 {[%clk 0:02:58]} 5. Nc3 {[%clk 0:02:46]}  c6 {[%clk 0:02:52]} 6. Qc2 {[%clk 0:02:43]}  Be7 {[%clk 0:02:48]} 7. Bf4 {[%clk 0:02:42]}  O-O {[%clk 0:02:47]} 8. e3 {[%clk 0:02:37]}  Bg4 {[%clk 0:02:47]} 9. Ne5 {[%clk 0:02:37]}  Bh5 {[%clk 0:02:47]} 10. Bd3 {[%clk 0:02:34]}  Nbd7 {[%clk 0:02:47]} 11. O-O {[%clk 0:02:32]}  Re8 {[%clk 0:02:43]} 12. h3 {[%clk 0:02:28]}  Bg6 {[%clk 0:02:24]} 13. Nxg6 {[%clk 0:02:28]}  hxg6 {[%clk 0:02:24]} 14. Rab1 {[%clk 0:02:29]}  a5 {[%clk 0:02:23]} 15. a3 {[%clk 0:02:23]}  Bf8 {[%clk 0:02:16]} 16. Rfc1 {[%clk 0:02:20]}  Nb6 {[%clk 0:02:10]} 17. Bg5 {[%clk 0:01:56]}  Qd7 {[%clk 0:01:58]} 18. Na4 {[%clk 0:01:50]}  Nxa4 {[%clk 0:01:54]} 19. Qxa4 {[%clk 0:01:50]}  Ne4 {[%clk 0:01:54]} 20. Bxe4 {[%clk 0:01:42]}  Rxe4 {[%clk 0:01:51]} 21. b4 {[%clk 0:01:36]}  b5 {[%clk 0:01:36]} 22. Qc2 {[%clk 0:01:34]}  Re6 {[%clk 0:01:37]} 23. Bf4 {[%clk 0:01:21]}  a4 {[%clk 0:01:36]} 24. Qd3 {[%clk 0:01:17]}  Rae8 {[%clk 0:01:34]} 25. Rc3 {[%clk 0:01:17]}  Be7 {[%clk 0:01:20]} 26. Rbc1 {[%clk 0:01:16]}  g5 {[%clk 0:01:19]} 27. Be5 {[%clk 0:01:12]}  Rc8 {[%clk 0:00:58]} 28. Qf5 {[%clk 0:01:09]}  g6 {[%clk 0:00:52]} 29. Qc2 {[%clk 0:01:07]}  Bf6 {[%clk 0:00:47]} 30. Bxf6 {[%clk 0:01:05]}  Rxf6 {[%clk 0:00:47]} 31. Rc5 {[%clk 0:01:05]}  g4 {[%clk 0:00:38]} 32. hxg4 {[%clk 0:01:05]}  Qxg4 {[%clk 0:00:37]} 33. Rxd5 {[%clk 0:01:03]}  Re8 {[%clk 0:00:32]} 34. Rc5 {[%clk 0:00:53]}  Ree6 {[%clk 0:00:28]} 35. Qd1 {[%clk 0:00:53]}  Qe4 {[%clk 0:00:21]} 36. Qc2 {[%clk 0:00:51]}  Qh4 {[%clk 0:00:16]} 37. d5 {[%clk 0:00:44]}  cxd5 {[%clk 0:00:12]} 38. Rxd5 {[%clk 0:00:45]}  Rc6 {[%clk 0:00:10]} 39. Qxc6 {[%clk 0:00:28]}  Rxc6 {[%clk 0:00:10]} 40. Rxc6 {[%clk 0:00:28]}  Qe4 {[%clk 0:00:10]} 41. Rcc5 {[%clk 0:00:24]}  Qb1+ {[%clk 0:00:09]} 42. Kh2 {[%clk 0:00:24]}  Qb2 {[%clk 0:00:10]} 43. Kg3 {[%clk 0:00:22]}  Qxa3 {[%clk 0:00:10]} 44. Rxb5 {[%clk 0:00:22]}  Qa1 {[%clk 0:00:09]} 45. Ra5 {[%clk 0:00:21]}  a3 {[%clk 0:00:09]} 46. Rd8+ {[%clk 0:00:22]}  Kg7 {[%clk 0:00:09]} 47. Rda8 {[%clk 0:00:22]}  Qc3 {[%clk 0:00:06]} 48. b5 {[%clk 0:00:20]}  Qc7+ {[%clk 0:00:05]} 49. Kf3 {[%clk 0:00:19]}  Qb7+ {[%clk 0:00:03]} 50. Kg3 {[%clk 0:00:19]}  Qc7+ {[%clk 0:00:04]} 51. Kh3 {[%clk 0:00:19]}  Qd7+ {[%clk 0:00:04]} 52. Kh2 {[%clk 0:00:19]}  Qc7+ {[%clk 0:00:04]} 53. Kg1 {[%clk 0:00:19]}  Qc1+ {[%clk 0:00:04]} 54. Kh2 {[%clk 0:00:20]}  Qc7+ {[%clk 0:00:05]} 55. g3 {[%clk 0:00:21]}  Qc2 {[%clk 0:00:04]} 56. Kg2 {[%clk 0:00:21]}  Qe4+ {[%clk 0:00:05]} 57. Kg1 {[%clk 0:00:21]}  Qb1+ {[%clk 0:00:05]} 58. Kh2 {[%clk 0:00:22]}  Qc2 {[%clk 0:00:05]} 59. Kg1 {[%clk 0:00:19]}  Qb1+ {[%clk 0:00:05]} 60. Kg2 {[%clk 0:00:20]}  Qe4+ {[%clk 0:00:06]} 61. Kh3 {[%clk 0:00:20]}  Qf5+ {[%clk 0:00:06]} 62. Kg2 {[%clk 0:00:19]}  Qe4+ {[%clk 0:00:06]} 1/2-1/2


[Site "https://www.chess.com"]

[Event "Titled Tuesday Blitz April 18 Early 2023"]
[White "De Souza, Cristiano Gomes"]
[Black "Koutlas, Nikolaos"]
[WhiteFideId "2151758"]
[BlackFideId "25827138"]
[WhiteElo "2068"]
[BlackElo "2215"]
[Result "0-1"]
[Round "02"]
[TimeControl "180+2"]
[Date "2023.04.18"]
[WhiteClock "0:02:11"]
[BlackClock "0:02:33"]

1. d4 {[%clk 0:02:59]}  Nf6 {[%clk 0:02:58]} 2. c4 {[%clk 0:02:58]}  e6 {[%clk 0:02:58]} 3. Nf3 {[%clk 0:02:58]}  Bb4+ {[%clk 0:02:58]} 4. Bd2 {[%clk 0:02:58]}  a5 {[%clk 0:02:57]} 5. Nc3 {[%clk 0:02:57]}  O-O {[%clk 0:02:57]} 6. a3 {[%clk 0:02:58]}  Be7 {[%clk 0:02:56]} 7. g3 {[%clk 0:02:58]}  d5 {[%clk 0:02:56]} 8. cxd5 {[%clk 0:02:57]}  exd5 {[%clk 0:02:56]} 9. Bg2 {[%clk 0:02:56]}  c6 {[%clk 0:02:56]} 10. Ne5 {[%clk 0:02:56]}  Nbd7 {[%clk 0:02:53]} 11. O-O {[%clk 0:02:54]}  Nxe5 {[%clk 0:02:52]} 12. dxe5 {[%clk 0:02:55]}  Ng4 {[%clk 0:02:50]} 13. f4 {[%clk 0:02:35]}  Qb6+ {[%clk 0:02:50]} 14. Kh1 {[%clk 0:02:35]}  Nf2+ {[%clk 0:02:50]} 15. Rxf2 {[%clk 0:02:35]}  Qxf2 {[%clk 0:02:51]} 16. e3 {[%clk 0:02:35]}  Bf5 {[%clk 0:02:42]} 17. g4 {[%clk 0:02:26]}  Bxg4 {[%clk 0:02:41]} 18. Qxg4 {[%clk 0:02:26]}  Qxd2 {[%clk 0:02:41]} 19. Rb1 {[%clk 0:02:22]}  Qxe3 {[%clk 0:02:39]} 20. Rg1 {[%clk 0:02:16]}  Bc5 {[%clk 0:02:38]} 21. Ne2 {[%clk 0:02:11]}  g6 {[%clk 0:02:37]} 22. h4 {[%clk 0:02:11]}  h5 {[%clk 0:02:33]} 0-1


[Site "https://www.chess.com"]

[Event "Titled Tuesday Blitz April 18 Early 2023"]
[White "Lorenzo De La Riva, Lazaro"]
[Black "Makhmudov, Shukhrat"]
[WhiteFideId "2268809"]
[BlackFideId "14200775"]
[WhiteElo "2294"]
[BlackElo "2135"]
[Result "1/2-1/2"]
[Round "02"]
[TimeControl "180+2"]
[Date "2023.04.18"]
[WhiteClock "0:00:16"]
[BlackClock "0:00:14"]

1. c4 {[%clk 0:03:00]}  Nf6 {[%clk 0:02:55]} 2. g3 {[%clk 0:02:59]}  b6 {[%clk 0:02:53]} 3. Bg2 {[%clk 0:02:57]}  Nc6 {[%clk 0:02:54]} 4. d4 {[%clk 0:02:54]}  Bb7 {[%clk 0:02:49]} 5. Nc3 {[%clk 0:02:47]}  e6 {[%clk 0:02:47]} 6. a3 {[%clk 0:02:46]}  Be7 {[%clk 0:02:45]} 7. e4 {[%clk 0:02:45]}  d6 {[%clk 0:02:43]} 8. Nge2 {[%clk 0:02:42]}  e5 {[%clk 0:02:41]} 9. d5 {[%clk 0:02:41]}  Nb8 {[%clk 0:02:36]} 10. O-O {[%clk 0:02:41]}  a5 {[%clk 0:02:36]} 11. Be3 {[%clk 0:02:27]}  O-O {[%clk 0:02:35]} 12. b4 {[%clk 0:02:25]}  axb4 {[%clk 0:02:20]} 13. axb4 {[%clk 0:02:24]}  Nbd7 {[%clk 0:02:19]} 14. h3 {[%clk 0:02:15]}  Re8 {[%clk 0:02:07]} 15. Qc2 {[%clk 0:02:06]}  Nf8 {[%clk 0:01:58]} 16. Ra2 {[%clk 0:01:57]}  Rxa2 {[%clk 0:01:56]} 17. Qxa2 {[%clk 0:01:57]}  Qd7 {[%clk 0:01:55]} 18. Qb2 {[%clk 0:01:55]}  Ra8 {[%clk 0:01:55]} 19. Ra1 {[%clk 0:01:55]}  Qe8 {[%clk 0:01:53]} 20. Nb5 {[%clk 0:01:52]}  Bd8 {[%clk 0:01:49]} 21. Rxa8 {[%clk 0:01:41]}  Bxa8 {[%clk 0:01:49]} 22. Qa3 {[%clk 0:01:42]}  Bb7 {[%clk 0:01:48]} 23. Qa7 {[%clk 0:01:42]}  c6 {[%clk 0:01:43]} 24. Nxd6 {[%clk 0:01:38]}  Qd7 {[%clk 0:01:42]} 25. Nxb7 {[%clk 0:01:38]}  cxd5 {[%clk 0:01:42]} 26. exd5 {[%clk 0:01:37]}  e4 {[%clk 0:01:41]} 27. Qa8 {[%clk 0:01:31]}  Be7 {[%clk 0:01:40]} 28. c5 {[%clk 0:01:16]}  bxc5 {[%clk 0:01:36]} 29. Nxc5 {[%clk 0:01:15]}  Qxd5 {[%clk 0:01:34]} 30. Qxd5 {[%clk 0:01:06]}  Nxd5 {[%clk 0:01:34]} 31. Bd2 {[%clk 0:00:54]}  f5 {[%clk 0:01:31]} 32. Nd4 {[%clk 0:00:48]}  g6 {[%clk 0:01:30]} 33. Nc6 {[%clk 0:00:47]}  Bd6 {[%clk 0:01:30]} 34. Bf1 {[%clk 0:00:45]}  Nb6 {[%clk 0:01:23]} 35. Be3 {[%clk 0:00:31]}  Kg7 {[%clk 0:01:14]} 36. Nb7 {[%clk 0:00:29]}  Bc7 {[%clk 0:01:13]} 37. Bd4+ {[%clk 0:00:29]}  Kf7 {[%clk 0:01:09]} 38. Nca5 {[%clk 0:00:27]}  Ne6 {[%clk 0:01:07]} 39. Bc5 {[%clk 0:00:27]}  f4 {[%clk 0:01:04]} 40. g4 {[%clk 0:00:26]}  h5 {[%clk 0:00:59]} 41. Bb5 {[%clk 0:00:24]}  Ng5 {[%clk 0:00:55]} 42. Bf1 {[%clk 0:00:20]}  Nf3+ {[%clk 0:00:51]} 43. Kh1 {[%clk 0:00:19]}  hxg4 {[%clk 0:00:47]} 44. hxg4 {[%clk 0:00:20]}  g5 {[%clk 0:00:46]} 45. Nb3 {[%clk 0:00:18]}  Ne5 {[%clk 0:00:44]} 46. Bh3 {[%clk 0:00:16]}  Nd3 {[%clk 0:00:43]} 47. Nd2 {[%clk 0:00:15]}  Nxc5 {[%clk 0:00:38]} 48. bxc5 {[%clk 0:00:14]}  e3 {[%clk 0:00:39]} 49. fxe3 {[%clk 0:00:14]}  fxe3 {[%clk 0:00:39]} 50. Nf3 {[%clk 0:00:15]}  Nd5 {[%clk 0:00:36]} 51. Nxg5+ {[%clk 0:00:15]}  Kg6 {[%clk 0:00:37]} 52. Nf3 {[%clk 0:00:15]}  e2 {[%clk 0:00:34]} 53. Kg1 {[%clk 0:00:14]}  Nf4 {[%clk 0:00:34]} 54. Kf2 {[%clk 0:00:14]}  Nxh3+ {[%clk 0:00:33]} 55. Kxe2 {[%clk 0:00:14]}  Nf4+ {[%clk 0:00:33]} 56. Ke3 {[%clk 0:00:15]}  Ne6 {[%clk 0:00:33]} 57. Ke4 {[%clk 0:00:15]}  Ng5+ {[%clk 0:00:30]} 58. Kd5 {[%clk 0:00:16]}  Nxf3 {[%clk 0:00:30]} 59. Nd6 {[%clk 0:00:13]}  Bd8 {[%clk 0:00:18]} 60. Ke6 {[%clk 0:00:13]}  Ba5 {[%clk 0:00:17]} 61. c6 {[%clk 0:00:13]}  Nd4+ {[%clk 0:00:17]} 62. Kd5 {[%clk 0:00:14]}  Nxc6 {[%clk 0:00:14]} 63. Kxc6 {[%clk 0:00:15]}  Kg5 {[%clk 0:00:14]} 64. Nc4 {[%clk 0:00:16]}  Bc3 {[%clk 0:00:13]} 65. Kd5 {[%clk 0:00:16]}  Kxg4 {[%clk 0:00:14]} 1/2-1/2


[Site "https://www.chess.com"]